bitfinex/quotes_ETHUSD_20251008
["timestamp","ask_amount","ask_price","bid_price","bid_amount"]
[1759934161951,0.01,4476.9,4476.1,2.23406521]
[1759934162382,0.01,4476.9,4476.4,2.23393661]
[1759934162583,0.01,4476.9,4475.8,0.4424]
[1759934163086,0.01,4476.9,4475.9,2.2565294]
[1759934163295,0.01,4476.9,4476.8,2.23373838]
[1759934163473,0.01,4476.9,4476.0,0.71229294]
[1759934163967,0.01,4476.9,4476.0,0.4424]
[1759934164382,0.01,4476.9,4476.2,2.23399269]
[1759934164585,0.01,4476.9,4476.8,2.23373838]
[1759934165143,0.01,4476.9,4476.8,2.69847576]
[1759934165459,0.01,4476.9,4476.8,0.4424]
[1759934165854,0.01,4476.9,4476.8,2.67613838]
[1759934166183,0.01,4476.9,4475.2,1.92]
[1759934166184,0.109,4476.9,4475.2,0.4424]
[1759934166397,0.01,4476.9,4475.2,0.4424]
[1759934166690,0.2579,4476.8,4475.4,2.23442903]
[1759934166987,0.2579,4476.8,4475.2,0.4424]
[1759934166988,2.23384889,4476.6,4475.5,2.23438016]
[1759934167140,41.23337328,4476.0,4475.2,0.4424]
[1759934167575,41.23337328,4476.0,4475.9,2.23418753]
[1759934167884,41.23337328,4476.0,4475.4,0.4424]
[1759934168189,41.23337328,4476.0,4475.9,2.23418753]
[1759934168386,41.23337328,4476.0,4475.9,2.67658753]
[1759934168881,41.23337328,4476.0,4475.9,2.23418753]
[1759934169051,41.34457328,4476.0,4475.3,0.1112]
[1759934169372,41.23337328,4476.0,4475.9,2.23418753]
[1759934169545,41.23337328,4476.0,4475.9,2.78778753]
[1759934169748,41.23337328,4476.0,4475.9,3.28999502]
[1759934169959,41.23337328,4476.0,4475.9,3.17879502]
[1759934171644,41.23337328,4476.0,4474.9,0.4424]
[1759934171873,2.571,4475.9,4474.9,0.4424]
[1759934172177,2.571,4475.9,4474.4,2.357]
[1759934172385,2.571,4475.9,4473.6,2.357]
[1759934172576,2.571,4475.8,4473.6,2.571]
[1759934172773,0.2571,4475.7,4475.0,2.23462785]
[1759934173173,0.2571,4475.7,4474.1,2.23508081]
[1759934173375,0.2571,4475.7,4473.8,2.23523626]
[1759934173885,0.2571,4475.7,4474.2,2.23503218]
[1759934174086,0.2571,4475.7,4474.0,2.23512431]
[1759934174393,0.099,4476.1,4473.7,2.1771]
[1759934174394,2.57,4475.6,4475.4,2.23442996]
[1759934174560,2.57,4475.5,4474.3,2.23498647]
[1759934174755,2.57,4475.5,4474.1,0.22351243]
[1759934174756,2.57,4475.4,4475.3,2.23448707]
[1759934174957,2.57,4475.4,4475.3,2.20448707]
[1759934175388,2.57,4475.4,4474.2,2.23503643]
[1759934175588,2.827,4475.4,4474.1,0.22351243]
[1759934175766,2.57,4475.4,4473.8,2.23523626]
[1759934175973,2.57,4475.4,4475.2,2.2345311]
[1759934176187,0.01,4475.9,4475.2,2.2345311]
[1759934176188,2.57,4475.3,4475.2,2.234537]
[1759934176505,2.57,4475.3,4473.7,2.1771]
[1759934176809,2.57,4475.3,4475.2,2.234537]
[1759934177011,3.2685,4475.3,4472.0,2.23613595]
[1759934177157,0.4415,4475.2,4474.0,2.23511211]
[1759934177358,0.01,4475.9,4474.1,0.02235086]
[1759934177664,0.0092,4475.9,4475.8,2.23423745]
[1759934178060,0.0092,4475.9,4475.8,2.25657982]
[1759934178313,0.0092,4475.9,4474.8,1.92]
[1759934178486,0.0092,4475.9,4475.0,1.92]
[1759934178674,0.0092,4475.9,4474.9,0.449]
[1759934178872,0.0092,4475.9,4474.3,1.92]
[1759934179205,0.0092,4475.9,4475.3,2.23447748]
[1759934179414,2.23428737,4475.7,4474.3,2.23493801]
[1759934179696,2.23445283,4475.4,4474.4,2.234927]
[1759934179859,0.1112,4475.0,4474.2,0.1112]
[1759934180264,0.0092,4475.9,4473.7,0.44718603]
[1759934180459,0.0092,4475.9,4473.9,1.92]
[1759934180659,0.0092,4475.9,4475.8,2.23423745]
[1759934181066,0.0092,4475.9,4475.6,2.23433439]
[1759934181263,0.0092,4475.9,4474.0,2.23513634]
[1759934181493,0.25792,4475.8,4475.2,2.23453683]
[1759934182065,0.25792,4475.8,4474.1,0.67251363]
[1759934182368,0.4415,4475.7,4473.7,2.23528622]
[1759934182597,0.4415,4475.7,4474.8,2.23469811]
[1759934183097,2.57,4475.6,4474.9,2.23467872]
[1759934183306,2.57,4475.6,4473.7,2.23528622]
[1759934183500,2.57,4475.6,4474.9,2.23463967]
[1759934183669,2.875252,4475.6,4475.0,2.23461278]
[1759934183870,2.875252,4475.6,4475.0,2.23461167]
[1759934184064,2.569,4475.5,4473.7,2.23528622]
[1759934184276,0.0092,4475.9,4473.8,2.57595236]
[1759934184476,0.0092,4475.9,4473.8,0.65595236]
[1759934184677,0.007,4475.8,4475.5,2.2343441]
[1759934184887,0.007,4475.8,4475.6,2.23432646]
[1759934185087,0.007,4475.8,4474.0,0.6336]
[1759934185292,0.007,4475.8,4475.6,2.23430389]
[1759934185487,0.007,4475.8,4475.7,2.23428737]
[1759934185794,0.0092,4475.9,4474.5,2.23488657]
[1759934185967,2.5782,4475.9,4474.6,0.22348866]
[1759934186169,2.5782,4475.9,4474.1,2.23508638]
[1759934186418,0.0092,4475.9,4475.8,2.23423745]
[1759934187287,0.0092,4475.9,4475.8,2.25657982]
[1759934188190,0.0092,4475.9,4475.8,2.23423745]
[1759934188501,0.0092,4475.9,4474.1,0.21479174]
[1759934188710,0.0092,4475.9,4472.5,4.05056908]
[1759934188711,0.4102,4475.9,4473.9,2.2351863]
[1759934188875,0.4102,4475.9,4474.0,0.42111863]
[1759934189073,0.4102,4475.9,4474.1,2.23508638]
[1759934189387,0.4102,4475.9,4475.2,2.23452968]
[1759934189595,0.4102,4475.9,4475.1,2.23454275]
[1759934189910,0.4102,4475.9,4473.8,2.23523626]
[1759934189911,0.6262,4475.9,4474.0,2.23513634]
[1759934190317,0.1112,4475.5,4474.8,0.1112]
[1759934190467,0.1112,4475.5,4475.4,2.23443714]
[1759934190670,0.0092,4475.9,4475.6,2.23429609]
[1759934190906,0.1112,4475.8,4475.1,2.34578589]
[1759934191109,2.576,4475.8,4475.1,2.2345795]
[1759934191344,0.1112,4475.4,4475.0,2.23461416]
[1759934191546,0.1112,4475.4,4474.7,2.34598472]
[1759934191547,0.1112,4475.4,4475.2,2.23453556]
[1759934191712,0.1112,4475.4,4475.1,2.23458253]
[1759934191913,0.1112,4475.4,4474.7,0.1112]
[1759934192127,0.1112,4475.4,4475.3,2.23448707]
[1759934192603,2.575,4475.4,4475.3,2.23448707]
[1759934192806,0.1112,4475.7,4475.4,2.23442055]
[1759934193049,2.575,4475.6,4475.4,2.23442055]
[1759934193205,2.575,4475.6,4475.5,2.23438721]
[1759934193962,0.1112,4475.7,4475.4,2.23443714]
[1759934194147,0.1112,4475.7,4475.6,2.23433729]
[1759934194348,2.574,4475.7,4475.6,2.25668066]
[1759934194516,0.0092,4475.9,4475.6,0.44910679]
[1759934194721,0.0092,4475.9,4475.8,2.23423745]
[1759934196870,0.6952,4475.9,4473.2,2.2355329]
[1759934197066,0.6952,4475.9,4474.0,2.23513634]
[1759934197358,0.6952,4475.9,4475.2,2.23453271]
[1759934197564,0.6952,4475.9,4475.2,2.23453289]
[1759934197729,0.55033006,4475.8,4474.5,2.23488642]
[1759934197934,0.55033006,4475.8,4474.1,2.23508638]
[1759934198133,0.0092,4475.9,4475.4,2.2343923]
[1759934198334,0.0112,4475.9,4474.5,0.001]
[1759934198538,2.573,4475.8,4475.4,2.23439085]
[1759934199377,2.573,4475.8,4475.5,2.2343871]
[1759934199588,0.0112,4475.9,4474.5,0.001]
[1759934199589,2.572,4475.7,4474.8,0.02234736]
[1759934199791,2.572,4475.6,4475.5,2.23434977]
[1759934200079,2.572,4475.6,4474.5,0.001]
[1759934200249,0.0112,4475.9,4474.5,0.001]
[1759934200250,2.572,4475.5,4474.6,2.45843238]
[1759934200446,0.0112,4475.9,4474.7,0.02234786]
[1759934200692,2.572,4475.8,4475.7,2.23423861]
[1759934200886,0.0104,4475.9,4474.6,2.23483663]
[1759934201090,2.572,4475.8,4475.7,2.23428737]
[1759934201242,0.0104,4475.9,4475.6,2.23433729]
[1759934201444,0.0104,4475.9,4475.7,2.23428737]
[1759934201648,0.0104,4475.9,4475.8,2.23423745]
[1759934202075,0.0104,4475.9,4475.8,2.68108993]
[1759934203578,0.0104,4475.9,4475.8,2.23423745]
[1759934204148,0.0104,4475.9,4475.7,2.23426288]
[1759934204352,0.0104,4475.9,4475.5,2.23435043]
[1759934204586,0.6626,4475.8,4473.6,2.23532616]
[1759934204793,2.89684372,4475.8,4474.4,2.23492585]
[1759934204961,1.07737752,4475.7,4473.2,1.757]
[1759934205155,2.23437385,4475.6,4474.6,2.23483663]
[1759934205494,1.07737752,4475.7,4474.6,2.23483663]
[1759934205661,2.57,4475.6,4474.8,2.23469594]
[1759934205866,0.6626,4475.8,4474.5,0.001]
[1759934205867,0.48141195,4475.7,4474.9,0.02234686]
[1759934206081,0.0104,4475.9,4474.5,0.001]
[1759934206264,2.57,4475.8,4475.4,2.23440999]
[1759934206473,0.0104,4475.9,4475.8,2.23423745]
[1759934206672,2.6916,4475.9,4475.8,2.23423745]
[1759934206873,2.5804,4475.9,4475.8,2.23423745]
[1759934207082,0.0104,4475.9,4475.8,2.23423745]
[1759934207393,0.0104,4475.9,4475.8,2.25657982]
[1759934207793,0.0104,4475.9,4475.8,2.23423745]
[1759934209703,0.0104,4475.9,4475.8,2.69221204]
[1759934210861,0.0104,4475.9,4475.8,2.23423745]
[1759934212312,0.0104,4475.9,4475.7,0.1112]
[1759934212467,2.5804,4475.9,4474.2,2.23500592]
[1759934212799,0.1112,4475.7,4475.0,0.1112]
[1759934212984,0.0104,4475.9,4475.7,2.23428251]
[1759934213189,0.0104,4475.9,4475.8,2.25657982]
[1759934213785,0.0104,4475.9,4475.8,2.23423745]
[1759934216793,0.0104,4475.9,4475.8,2.34543745]
[1759934217824,0.0104,4475.9,4475.8,2.34643745]
[1759934218222,0.0104,4475.9,4475.8,0.02334237]
[1759934218518,0.0104,4475.9,4475.8,2.23523745]
[1759934218722,0.0104,4475.9,4475.8,2.25757982]
[1759934218890,0.0104,4475.9,4475.8,2.68442875]
[1759934219093,0.012,4476.9,4475.8,0.4501913]
[1759934219399,0.012,4476.9,4476.8,2.23373838]
[1759934220221,0.012,4476.9,4475.9,2.568]
[1759934220523,0.4592,4476.8,4475.8,0.001]
[1759934220698,1.44684291,4476.7,4476.3,2.23397255]
[1759934220893,2.567,4476.6,4476.3,2.23397255]
[1759934221091,2.567,4476.6,4476.2,2.23400416]
[1759934221301,2.567,4476.6,4476.4,2.23391105]
[1759934221503,2.567,4476.6,4476.3,2.2339789]
[1759934221700,2.567,4476.6,4476.4,2.23393053]
[1759934222032,2.567,4476.6,4475.8,0.001]
[1759934222233,2.567,4476.5,4476.4,2.23393484]
[1759934222402,2.96738429,4476.5,4475.8,2.23522189]
[1759934222599,2.96738429,4476.5,4476.2,2.23400044]
[1759934222804,2.96738429,4476.5,4475.8,0.001]
[1759934222805,13.99722905,4476.3,4475.8,0.001]
[1759934223030,2.45208753,4475.9,4475.8,0.001]
[1759934223414,2.91128753,4475.9,4475.8,0.001]
[1759934223607,3.47315727,4475.9,4475.8,0.001]
[1759934223810,2.23431244,4475.7,4475.3,0.001]
[1759934224035,13.99722905,4475.4,4475.3,0.001]
[1759934224337,0.60166915,4476.4,4475.3,0.001]
[1759934224510,2.566,4476.3,4475.3,2.23545119]
[1759934224709,3.16566127,4476.2,4475.7,2.23425976]
[1759934224904,0.48125342,4476.1,4475.6,2.23433232]
[1759934225316,0.48125342,4476.1,4475.3,0.001]
[1759934225637,0.60166915,4476.7,4476.1,2.23405857]
[1759934225837,0.012,4476.9,4474.8,2.566]
[1759934226137,0.012,4476.9,4476.8,2.23373838]
[1759934226938,0.012,4476.9,4472.7,2.325]
[1759934227140,0.012,4476.9,4475.2,0.44337751]
[1759934227326,0.012,4476.9,4475.3,2.23448707]
[1759934227505,0.012,4476.9,4476.6,2.23381556]
[1759934227706,0.012,4476.9,4472.9,2.23565338]
[1759934227941,0.012,4476.9,4476.2,2.23403423]
[1759934228114,0.01,4475.9,4474.5,0.192]
[1759934228314,0.01,4475.9,4473.8,2.23521768]
[1759934228315,0.01,4474.9,4474.6,2.23481182]
[1759934228516,0.01,4474.9,4474.8,2.34593674]
[1759934229152,0.01,4474.9,4474.8,2.23473674]
[1759934230558,0.01,4474.9,4474.6,2.34602991]
[1759934230770,0.2677,4474.9,4473.4,2.567]
[1759934230913,0.2677,4474.9,4474.6,2.23482184]
[1759934231118,0.2677,4474.9,4473.5,2.23538616]
[1759934231359,0.01,4474.9,4474.8,2.23473674]
[1759934231856,0.01,4474.9,4474.7,2.23478381]
[1759934232157,2.576,4474.9,4474.6,2.23482692]
[1759934232363,2.576,4474.9,4473.0,4.8016206]
[1759934232593,2.576,4474.9,4474.8,2.23473674]
[1759934232594,0.01,4474.9,4474.8,2.23473674]
[1759934233140,0.01,4474.9,4473.7,2.23528622]
[1759934233328,0.01,4474.9,4473.8,0.48012862]
[1759934233965,0.01,4474.9,4474.0,2.23513634]
[1759934234164,0.01,4474.9,4474.5,2.23488503]
[1759934234463,0.01,4474.9,4473.2,2.23553608]
[1759934234759,0.01,4474.9,4474.6,2.23483543]
[1759934234960,0.2676,4474.9,4474.7,2.23476774]
[1759934235129,0.2676,4474.9,4471.3,2.23647011]
[1759934235334,16.24632107,4474.8,4472.7,2.23578599]
[1759934235566,2.23485106,4474.6,4472.2,2.23603595]
[1759934235744,2.23489107,4474.5,4472.1,1.952]
[1759934236060,0.6336,4474.7,4473.3,2.23547811]
[1759934236061,1.92,4474.1,4473.3,2.23547811]
[1759934236582,4.15510491,4474.1,4473.2,2.23553499]
[1759934236746,1.92,4473.9,4472.2,0.4188099]
[1759934236947,1.92,4473.9,4472.2,2.23603595]
[1759934237186,1.92,4474.1,4473.6,2.23531441]
[1759934237345,1.92,4473.9,4473.5,2.23537521]
[1759934237548,1.92,4473.9,4473.2,2.23551951]
[1759934237750,1.92,4473.9,4472.2,2.23603595]
[1759934237958,0.49442,4473.8,4473.4,2.2354337]
[1759934238196,0.49442,4473.8,4472.6,2.23578964]
[1759934238494,0.49442,4473.8,4473.4,2.23543214]
[1759934238877,0.49442,4473.8,4473.7,2.23528622]
[1759934239054,2.564,4473.8,4472.2,2.23603595]
[1759934239392,2.564,4473.8,4473.7,2.23528622]
[1759934239550,2.564,4473.8,4472.2,2.23603595]
[1759934239748,2.564,4473.8,4473.7,2.23528622]
[1759934239953,2.564,4473.8,4471.6,3.01888931]
[1759934239954,2.564,4473.8,4472.2,2.23603595]
[1759934240154,14.01153588,4474.1,4473.4,2.23543087]
[1759934240454,2.564,4474.0,4473.5,0.02235386]
[1759934240655,2.564,4474.0,4473.6,2.23533619]
[1759934240854,2.564,4474.0,4473.7,2.23527125]
[1759934241198,2.564,4474.0,4473.4,2.2354208]
[1759934241199,0.1112,4473.7,4473.4,2.23539026]
[1759934241555,14.01153588,4475.3,4473.5,0.02235386]
[1759934241778,0.01,4474.9,4473.5,0.02235386]
[1759934241986,0.01,4474.9,4474.8,2.23473674]
[1759934242299,2.574,4474.9,4474.2,2.23502524]
[1759934242494,14.01153588,4474.3,4472.1,0.01]
[1759934242698,2.564,4474.2,4473.7,2.23528117]
[1759934242995,4.22155359,4474.2,4473.8,2.23522922]
[1759934243358,2.564,4474.2,4472.3,4.15598595]
[1759934243557,2.564,4474.2,4474.0,2.23509044]
[1759934243762,2.564,4474.2,4472.8,2.23570314]
[1759934244003,0.01,4474.9,4474.0,2.23513634]
[1759934244004,2.564,4474.1,4474.0,2.23513634]
[1759934244245,14.01153588,4474.8,4474.2,2.23499204]
[1759934244452,3.96615359,4474.7,4473.5,2.23538019]
[1759934244652,2.564,4474.6,4474.3,2.23495667]
[1759934244815,2.564,4474.6,4472.5,2.564]
[1759934245153,2.564,4474.6,4474.0,2.23513359]
[1759934245453,2.564,4474.6,4474.4,2.23489581]
[1759934245810,0.01,4474.9,4474.2,0.02235036]
[1759934246032,2.564,4474.5,4474.4,2.23493652]
[1759934246229,0.01,4474.9,4474.4,2.23493652]
[1759934246230,0.01,4474.9,4474.6,2.23482998]
[1759934246425,2.564,4474.8,4474.6,2.23482998]
[1759934246625,2.5632,4474.8,4474.6,2.23483391]
[1759934246839,2.5632,4474.8,4474.7,2.23478668]
[1759934247043,2.5632,4474.8,4474.6,2.23483159]
[1759934247356,2.5632,4474.8,4474.5,2.2348467]
[1759934247770,2.5632,4474.8,4473.3,2.23545859]
[1759934247956,2.5632,4474.8,4474.5,2.23487767]
[1759934248266,2.5632,4474.8,4472.7,2.23577385]
[1759934248267,2.5632,4474.8,4473.1,2.23558605]
[1759934248452,0.01,4474.9,4474.6,2.23480911]
[1759934248633,2.563,4474.7,4474.6,2.23480911]
[1759934249328,0.01,4474.9,4474.5,2.23488657]
[1759934249541,0.01,4474.9,4474.8,2.23473674]
[1759934249951,0.01,4474.9,4473.9,2.23516705]
[1759934250233,0.01,4474.9,4474.7,2.23478176]
[1759934250456,0.01,4474.9,4474.8,2.23473674]
[1759934252489,0.01,4475.9,4474.9,2.2346868]
[1759934252632,2.562,4475.8,4473.5,2.2353638]
[1759934252966,2.562,4475.8,4474.9,2.23464284]
[1759934253183,2.562,4475.8,4475.1,2.2345846]
[1759934253331,2.23433729,4475.6,4472.3,2.562]
[1759934253535,14.01153588,4474.8,4472.4,2.23435935]
[1759934253731,2.23444518,4475.4,4472.5,2.18760124]
[1759934254052,0.4471,4475.7,4472.9,2.23568602]
[1759934254255,0.01,4475.9,4472.8,2.5536]
[1759934254430,0.01,4475.9,4472.9,0.02235686]
[1759934254632,0.01,4475.9,4475.6,2.23431452]
[1759934254864,0.01,4475.9,4475.7,0.02234287]
[1759934255065,0.01,4475.9,4475.8,2.23423745]
[1759934255452,0.01,4475.9,4475.3,2.23446853]
[1759934255453,0.01,4475.9,4474.7,2.563]
[1759934255773,0.01,4475.9,4474.9,2.2346868]
[1759934256069,0.01,4475.9,4475.0,2.23463687]
[1759934256247,0.01,4475.9,4474.8,0.47978514]
[1759934256454,0.01,4475.9,4475.8,2.23423745]
[1759934256648,0.01,4475.9,4475.5,2.23434376]
[1759934256649,0.01,4475.9,4474.8,0.47978514]
[1759934256983,0.01,4475.9,4475.8,2.23423745]
[1759934257291,0.01,4475.9,4475.8,2.25657982]
[1759934257448,0.01,4475.9,4475.8,2.23423745]
[1759934257980,0.002,4476.1,4476.0,2.23413762]
[1759934258764,0.002,4476.1,4476.0,2.25647899]
[1759934259080,0.002,4476.1,4476.0,2.68320926]
[1759934260882,0.002,4476.1,4476.0,2.70555063]
[1759934261185,1e-08,4476.6,4476.5,2.23388808]
[1759934261486,1e-08,4476.6,4476.5,4.79488808]
[1759934262254,1e-08,4476.6,4476.5,4.90608808]
[1759934262601,1e-08,4476.6,4476.5,5.62009341]
[1759934264385,0.002,4477.0,4476.9,2.23368848]
[1759934264585,0.002,4477.0,4476.5,0.82520533]
[1759934264793,0.4443,4477.0,4475.9,0.1112]
[1759934265124,0.1112,4476.7,4475.9,0.1112]
[1759934265303,0.1112,4476.7,4476.3,2.23394675]
[1759934265490,0.1112,4476.7,4475.9,0.1112]
[1759934265808,0.1112,4476.7,4476.3,2.23398054]
[1759934266110,0.34588389,4476.7,4476.3,2.23398054]
[1759934266285,0.67698389,4476.7,4475.9,2.23414747]
[1759934266523,0.1112,4476.2,4475.9,2.23414747]
[1759934266931,0.1112,4476.2,4475.9,2.23416113]
[1759934267547,2.56,4476.6,4475.9,2.23413767]
[1759934267738,0.1112,4476.4,4476.0,2.23413762]
[1759934267919,0.1112,4476.4,4475.8,2.23423745]
[1759934268126,2.23398789,4476.3,4475.5,2.2343695]
[1759934268327,0.1112,4475.9,4475.3,2.23448707]
[1759934268549,0.1112,4475.9,4475.2,2.3457218]
[1759934268731,0.1112,4475.9,4475.5,2.23436277]
[1759934268932,0.1112,4475.9,4475.2,0.1112]
[1759934269243,0.1112,4475.9,4475.4,2.23442023]
[1759934269726,0.1104,4475.9,4475.2,0.1112]
[1759934269927,0.1104,4475.9,4475.2,2.34572003]
[1759934270247,0.1104,4475.9,4475.3,2.23448707]
[1759934270429,2.6694,4475.9,4475.7,2.23424159]
[1759934270753,2.6694,4475.9,4475.2,0.1112]
[1759934271116,2.6694,4475.9,4475.8,2.23423745]
[1759934271734,2.6694,4475.9,4475.7,2.2342778]
[1759934271943,2.6694,4475.9,4475.2,0.1112]
[1759934272123,0.1104,4475.9,4475.6,2.23429825]
[1759934272332,0.1104,4475.9,4475.7,2.23427518]
[1759934272650,2.6694,4475.9,4475.8,2.23423745]
[1759934273046,2.6694,4475.9,4475.2,0.1112]
[1759934273748,2.93634,4475.9,4475.2,0.1112]
[1759934273959,2.45324436,4475.8,4475.1,0.01]
[1759934274172,0.1112,4475.4,4475.1,0.01]
[1759934274563,0.4605,4475.3,4475.1,0.01]
[1759934274774,1.92,4474.5,4474.1,0.01]
[1759934275066,2.23503643,4474.2,4474.1,0.01]
[1759934275254,0.6336,4474.0,4473.1,0.01]
[1759934275441,2.23547119,4473.4,4473.1,0.01]
[1759934275640,4.79450342,4473.3,4473.1,0.01]
[1759934275964,5.25500342,4473.3,4473.1,0.01]
[1759934276164,2.69603608,4473.2,4473.1,0.01]
[1759934276351,4.61603608,4473.2,4473.1,0.01]
[1759934277633,2.3805,4473.2,4473.1,0.01]
[1759934278366,0.4605,4473.2,4473.1,0.01]
[1759934278550,3.0195,4473.2,4473.1,0.01]
[1759934278751,13.80710746,4473.7,4473.1,0.01]
[1759934278955,2.559,4473.6,4473.2,2.23553608]
[1759934279257,2.559,4473.5,4473.4,2.23538618]
[1759934279635,0.4605,4474.1,4473.5,2.23536645]
[1759934279836,0.4605,4474.1,4473.6,2.23532606]
[1759934280062,0.30141,4474.0,4473.3,2.23548495]
[1759934280263,2.559,4473.9,4473.1,0.01]
[1759934280473,2.559,4473.9,4473.5,2.23536321]
[1759934280654,2.559,4473.8,4473.2,2.23553608]
[1759934280848,0.4605,4474.9,4474.0,2.23511362]
[1759934281168,0.46150899,4474.8,4474.1,0.02235086]
[1759934281371,2.559,4474.7,4473.4,0.0102]
[1759934281569,2.559,4474.6,4474.5,2.23484481]
[1759934281761,1.92,4475.3,4474.6,2.23481137]
[1759934281950,2.559,4475.2,4474.6,2.23481137]
[1759934282156,2.559,4475.2,4474.6,2.23482507]
[1759934282364,1.68266075,4475.1,4474.8,2.23470477]
[1759934282565,2.559,4475.2,4473.9,2.2351863]
[1759934282876,0.27894,4475.9,4474.1,2.23508638]
[1759934282877,0.4605,4475.7,4474.1,2.23508638]
[1759934283178,2.559,4475.6,4474.7,2.23474043]
[1759934283350,0.219,4475.7,4474.3,0.0102]
[1759934283551,2.56,4475.6,4475.5,2.23438721]
[1759934283775,0.012,4475.9,4474.7,0.02234786]
[1759934283940,2.56,4475.8,4475.6,2.23433642]
[1759934284140,2.56,4475.8,4475.7,2.23428737]
[1759934284441,0.012,4475.9,4475.3,2.23444731]
[1759934284760,2.559,4475.8,4475.1,2.23457322]
[1759934284965,2.559,4475.8,4475.1,2.23456741]
[1759934285268,2.559,4475.8,4474.2,0.0102]
[1759934285470,0.1112,4475.4,4475.3,2.23448707]
[1759934285640,2.559,4475.7,4475.3,2.26702168]
[1759934285843,2.559,4475.7,4475.5,2.23438721]
[1759934286038,0.002,4476.4,4475.6,2.23433729]
[1759934286265,0.002,4476.4,4476.3,2.34518789]
[1759934286759,0.002,4476.4,4476.3,2.35538789]
[1759934289161,0.002,4476.4,4476.3,2.34518789]
[1759934289695,0.002,4476.4,4474.7,0.0102]
[1759934289853,0.002,4476.4,4474.8,0.0102]
[1759934290058,0.002,4476.4,4475.0,2.23463687]
[1759934290289,2.561,4476.3,4476.2,2.23403779]
[1759934290810,0.002,4476.4,4476.3,2.23398789]
[1759934292891,0.0012,4476.4,4476.3,2.23398789]
[1759934293664,0.0012,4476.4,4476.3,2.69099381]
[1759934294099,1e-08,4477.0,4476.9,2.23368848]
[1759934294470,1e-08,4477.0,4476.9,2.24388848]
[1759934297717,2.70319651,4478.9,4476.9,0.0102]
[1759934297718,0.01,4478.9,4476.9,0.0102]
[1759934297915,1.777,4478.9,4476.9,0.0102]
[1759934298619,0.01,4477.9,4477.8,2.23323953]
[1759934299013,0.01,4477.9,4477.8,2.25557192]
[1759934299201,0.01,4477.9,4477.8,2.23323953]
[1759934299606,0.01,4477.9,4477.3,0.0102]
[1759934299809,0.01,4477.9,4477.8,2.23323953]
[1759934300280,0.01,4477.9,4477.5,0.1112]
[1759934300698,0.01,4477.9,4477.6,2.23332345]
[1759934301013,0.01,4477.9,4477.5,2.23337644]
[1759934301220,0.01,4477.9,4477.4,2.23343904]
[1759934301715,0.01,4477.9,4477.3,0.1112]
[1759934302014,0.01,4477.9,4477.8,2.23323953]
[1759934302218,0.01,4477.9,4477.8,2.26577192]
[1759934302590,0.01,4477.9,4477.8,2.25557192]
[1759934303523,0.01,4477.9,4477.8,2.26577192]
[1759934303720,0.01,4477.9,4477.8,2.23323953]
[1759934304217,0.01,4477.9,4477.8,2.72354887]
[1759934305021,0.01,4477.9,4477.8,2.70121648]
[1759934305226,2.568,4478.9,4477.8,3.15950934]
[1759934305227,0.01,4478.9,4477.8,3.15950934]
[1759934305423,0.01,4478.9,4478.8,2.23274091]
[1759934305616,0.01,4478.9,4478.8,2.34394091]
[1759934306738,0.01,4478.9,4478.3,2.558]
[1759934306902,0.01,4478.9,4478.4,0.0102]
[1759934307236,0.01,4478.9,4477.8,0.45777695]
[1759934307538,0.01,4478.9,4478.5,2.2328485]
[1759934307906,0.01,4478.9,4477.5,2.5682]
[1759934307907,0.01,4478.9,4477.9,2.23318966]
[1759934308117,0.01,4478.9,4478.3,0.0102]
[1759934308323,0.01,4478.9,4478.4,0.0223294]
[1759934308521,0.01,4478.9,4478.5,0.0102]
[1759934308812,0.01,4478.9,4478.8,2.23274091]
[1759934309005,0.01,4478.9,4478.8,2.24294091]
[1759934309206,0.01,4478.9,4478.8,2.69051644]
[1759934310110,0.01,4478.9,4478.8,2.71284384]
[1759934310310,0.01,4478.9,4478.8,2.69051644]
[1759934310311,1e-08,4478.9,4478.8,2.69051644]
[1759934310520,1e-08,4478.9,4478.8,5.24851644]
[1759934313442,1e-08,4478.9,4478.8,7.16851644]
[1759934313661,0.00200001,4478.9,4478.8,7.16851644]
[1759934314357,1e-08,4479.4,4478.9,1.92]
[1759934314556,1e-08,4479.4,4479.3,2.23249168]
[1759934314755,1e-08,4479.4,4479.3,4.78949168]
[1759934314943,1e-08,4479.4,4479.3,4.79969168]
[1759934315145,0.01,4480.9,4480.8,2.23174433]
[1759934315347,0.01,4480.9,4480.8,2.25406177]
[1759934315530,0.01,4480.9,4480.3,2.557]
[1759934315830,0.0092,4480.9,4480.8,2.23174433]
[1759934316256,0.0092,4480.9,4480.6,2.23181534]
[1759934316257,0.0092,4480.9,4478.2,2.23302068]
[1759934316458,0.0092,4480.9,4479.5,0.0102]
[1759934316663,0.1112,4480.8,4480.3,2.23198568]
[1759934316826,0.1112,4480.8,4480.5,2.23189346]
[1759934317028,0.1112,4480.8,4480.1,0.1112]
[1759934317332,0.1112,4480.8,4480.4,2.23190704]
[1759934317533,0.1112,4480.8,4480.1,0.1112]
[1759934317724,0.1112,4480.8,4480.6,2.23179781]
[1759934317925,0.1112,4480.8,4480.7,2.25411207]
[1759934318154,0.0092,4480.9,4480.7,0.1112]
[1759934318356,0.0092,4480.9,4479.5,0.0102]
[1759934318544,0.0092,4480.9,4480.1,0.1112]
[1759934318545,0.1112,4480.8,4480.1,0.1112]
[1759934318967,0.1112,4480.8,4480.5,2.23188694]
[1759934319181,0.1112,4480.8,4480.6,0.02231843]
[1759934319488,0.0092,4480.9,4479.3,0.0102]
[1759934319685,0.1112,4480.3,4479.5,0.1112]
[1759934320185,0.1112,4480.3,4476.8,0.001]
[1759934320186,0.1112,4480.0,4479.3,0.1112]
[1759934320390,0.1112,4480.0,4479.5,2.23235139]